[Event "Belt and Road Women 2024"]
[Site "Yuecheng Shaoxing"]
[Date "2024.07.28"]
[Round "5.15"]
[White "Ha, Yihan"]
[Black "Bai, Xue"]
[Result "1/2-1/2"]
[ECO "D36"]
[WhiteElo "2166"]
[BlackElo "2114"]
[Annotator "RC"]
[PlyCount "70"]
[EventDate "2024.08.01"]
[EventType "swiss"]
[EventCountry "CHN"]
[SourceTitle "playchess.com"]
[Source "ChessBase"]
[SourceQuality "1"]
[TimeControl "5400+30"]

1. d4 {[%emt 0:00:08]} Nf6 {[%emt 0:00:33]} 2. c4 {[%emt 0:00:05]} e6 {[%emt 0:00:04]} 3. Nc3 {[%emt 0:00:10]} d5 {[%emt 0:00:06]} 4. cxd5 {[%emt 0:00:09]} exd5 {[%emt 0:00:05]} 5. Bg5 {[%emt 0:00:07]} Be7 {[%emt 0:00:04]} 6. e3 {[%emt 0:00:07]} c6 {[%emt 0:00:09]} 7. Bd3 {[%emt 0:00:11]} O-O {[%emt 0:00:06]} 8. Qc2 {[%emt 0:00:22]} h6 {[%emt 0:00:05]} 9. Bh4 {[%emt 0:00:29]} Nbd7 {[%emt 0:00:07]} 10. Nf3 {[%emt 0:01:42]} Re8 {[%emt 0:00:08]} 11. O-O {[%emt 0:00:53]} Ne4 {[%emt 0:02:38]} 12. Bxe4 {[%emt 0:01:43]} Bxh4 {[%emt 0:04:38]} 13. Bh7+ {[%emt 0:00:40]} Kh8 {[%emt 0:00:24]} 14. Nxh4 {[%emt 0:00:35]} Qxh4 {[%emt 0:00:09]} 15. Bd3 {[%emt 0:00:17]} Nf6 {[%emt 0:06:49]} 16. Rae1 {[%emt 0:00:50]} Ng4 {[%emt 0:10:19]} 17. h3 {[%emt 0:00:23]} Nf6 {[%emt 0:00:05]} 18. f3 {[%emt 0:01:23]} Nh5 {[%emt 0:05:17]} 19. Qf2 {[%emt 0:02:06]} Qxf2+ {[%emt 0:10:46]} 20. Kxf2 {[%emt 0:01:11]} Be6 {[%emt 0:09:31]} 21. g4 {[%emt 0:03:48]} Nf6 {[%emt 0:00:07]} 22. b4 {[%emt 0:02:06]} b6 {[%emt 0:02:56]} 23. Rc1 {[%emt 0:02:30]} Bd7 {[%emt 0:01:59]} 24. Rfe1 {[%emt 0:14:23]} Rac8 {[%emt 0:01:52]} 25. e4 {[%emt 0:06:29]} dxe4 {[%emt 0:00:54]} 26. fxe4 {[%emt 0:01:07]} Be6 {[%emt 0:02:18]} 27. e5 {[%emt 0:05:49]} Nd5 {[%emt 0:02:21]} 28. Nxd5 {[%emt 0:04:19]} Bxd5 {[%emt 0:00:07]} 29. a3 {[%emt 0:01:53]} Rcd8 {[%emt 0:05:51]} 30. Rc3 {[%emt 0:10:31]} Re7 {[%emt 0:03:14]} 31. Rec1 {[%emt 0:01:24]} f6 {[%emt 0:02:08]} 32. exf6 {[%emt 0:01:18]} Rf8 {[%emt 0:02:10]} 33. b5 {[%emt 0:03:15]} Rxf6+ {[%emt 0:01:21]} 34. Kg1 {[%emt 0:00:38]} Re3 {[%emt 0:03:01]} 35. Bf1 {[%emt 0:00:47]} Rxc3 {[%emt 0:04:37]} 1/2-1/2

[Event "Belt and Road Women 2024"]
[Site "Yuecheng Shaoxing"]
[Date "2024.07.28"]
[Round "5.16"]
[White "Wang, Chuqiao"]
[Black "Li, Xueyi"]
[Result "1/2-1/2"]
[ECO "D45"]
[WhiteElo "2278"]
[BlackElo "2209"]
[Annotator "RC"]
[PlyCount "101"]
[EventDate "2024.08.01"]
[EventType "swiss"]
[EventCountry "CHN"]
[SourceTitle "playchess.com"]
[Source "ChessBase"]
[SourceQuality "1"]
[TimeControl "5400+30"]

1. d4 {[%emt 0:00:04]} d5 {[%emt 0:00:02]} 2. c4 {[%emt 0:00:28]} c6 {[%emt 0:00:04]} 3. Nf3 {[%emt 0:00:07]} Nf6 {[%emt 0:00:06]} 4. Nc3 {[%emt 0:00:11]} a6 {[%emt 0:01:49]} 5. e3 {[%emt 0:09:24]} e6 {[%emt 0:01:45]} 6. Qc2 {[%emt 0:01:11]} Nbd7 {[%emt 0:00:18]} 7. Bd3 {[%emt 0:00:28]} dxc4 {[%emt 0:00:50]} 8. Bxc4 {[%emt 0:00:43]} b5 {[%emt 0:00:05]} 9. Be2 {[%emt 0:00:50]} Bb7 {[%emt 0:00:44]} 10. O-O {[%emt 0:14:08]} c5 {[%emt 0:02:22]} 11. dxc5 {[%emt 0:03:12]} Bxc5 {[%emt 0:01:14]} 12. e4 {[%emt 0:03:39]} Qc7 {[%emt 0:23:17]} 13. Bd3 {[%emt 0:05:59]} Ne5 {[%emt 0:08:43]} 14. Nxe5 {[%emt 0:12:37]} Qxe5 {[%emt 0:00:07]} 15. Nd5 {[%emt 0:10:23]} Nxe4 {[%emt 0:24:05]} 16. Bxe4 {[%emt 0:00:56]} Bxd5 {[%emt 0:02:11]} 17. Bxd5 {[%emt 0:00:50]} Qxd5 {[%emt 0:00:09]} 18. Rd1 {[%emt 0:00:15]} Qc4 {[%emt 0:04:49]} 19. Qxc4 {[%emt 0:01:07]} bxc4 {[%emt 0:00:05]} 20. Bf4 {[%emt 0:00:14]} Ke7 {[%emt 0:02:00]} 21. Rac1 {[%emt 0:00:33]} Rhd8 {[%emt 0:01:04]} 22. Rxd8 {[%emt 0:07:56]} Rxd8 {[%emt 0:00:14]} 23. Kf1 {[%emt 0:01:13]} Bd4 {[%emt 0:01:36]} 24. Rxc4 {[%emt 0:02:12]} Bxb2 {[%emt 0:00:11]} 25. Bg5+ {[%emt 0:02:58]} Bf6 {[%emt 0:02:23]} 26. Be3 {[%emt 0:00:24]} Rd5 {[%emt 0:03:27]} 27. Ke2 {[%emt 0:07:28]} Kd7 {[%emt 0:00:33]} 28. a4 {[%emt 0:01:28]} Rh5 {[%emt 0:03:03]} 29. Bf4 {[%emt 0:01:59]} Rd5 {[%emt 0:01:49]} 30. Rc7+ {[%emt 0:02:05]} Kd8 {[%emt 0:02:10]} 31. Rc2 {[%emt 0:04:22]} Be5 {[%emt 0:05:16]} 32. Bd2 {[%emt 0:01:20]} Kd7 {[%emt 0:00:42]} 33. Be3 {[%emt 0:01:36]} Bd4 {[%emt 0:00:29]} 34. Bf4 {[%emt 0:00:43]} Rf5 {[%emt 0:02:23]} 35. g3 {[%emt 0:01:23]} g5 {[%emt 0:02:22]} 36. Rd2 {[%emt 0:01:08]} gxf4 {[%emt 0:00:47]} 37. Rxd4+ {[%emt 0:00:02]} Kc6 {[%emt 0:00:34]} 38. gxf4 {[%emt 0:01:16]} Rh5 {[%emt 0:01:48]} 39. Rc4+ {[%emt 0:01:10]} Kb6 {[%emt 0:00:22]} 40. Ke3 {[%emt 0:01:11]} Rxh2 {[%emt 0:00:18]} 41. f5 {[%emt 0:00:28]} Rh5 {[%emt 0:01:18]} 42. fxe6 {[%emt 0:00:29]} fxe6 {[%emt 0:00:58]} 43. Re4 {[%emt 0:00:03]} e5 {[%emt 0:00:29]} 44. Rc4 {[%emt 0:01:05]} Rh6 {[%emt 0:00:32]} 45. Re4 {[%emt 0:00:08]} Re6 {[%emt 0:00:25]} 46. Rh4 {[%emt 0:00:04]} Re7 {[%emt 0:00:18]} 47. Ke4 {[%emt 0:01:34]} Kc5 {[%emt 0:01:20]} 48. Rh5 {[%emt 0:00:15]} Kd6 {[%emt 0:01:40]} 49. Rh6+ {[%emt 0:00:12]} Re6 {[%emt 0:00:34]} 50. Rxh7 {[%emt 0:00:08]} Rf6 {[%emt 0:00:19]} 51. Rh4 {[%emt 0:00:05]} 1/2-1/2

[Event "Belt and Road Women 2024"]
[Site "Yuecheng Shaoxing"]
[Date "2024.07.29"]
[Round "6.1"]
[White "Badelka, Olga"]
[Black "Tan, Zhongyi"]
[Result "1-0"]
[ECO "A46"]
[WhiteElo "2389"]
[BlackElo "2540"]
[Annotator "TA"]
[PlyCount "93"]
[EventDate "2024.08.01"]
[EventType "swiss"]
[EventCountry "CHN"]
[SourceTitle "playchess.com"]
[Source "ChessBase"]
[SourceQuality "1"]
[TimeControl "5400+30"]

{[%evp 9,93,-15,0,-9,-8,-10,0,-20,-15,-31,-34,-48,-39,-31,25,27,26,45,44,56,42,0,0,0,9,0,23,0,33,0,0,-20,35,58,431,431,414,422,444,383,378,376,385,386,336,219,178,182,195,193,175,190,186,175,170,170,247,247,247,247,419,419,500,500,740,414,395,0,972,972,972,734,734,734,1285,1041,5583,2216,29962,29959,29961,10525,29963,29962,6020,4533]} 1. Nf3 {[%emt 0:00:04]} Nf6 {[%emt 0:02:31]} 2. g3 {[%emt 0:00:07]} b5 {[%emt 0:02:52]} 3. Bg2 {[%emt 0:00:17]} Bb7 {[%emt 0:00:04]} 4. d4 {[%emt 0:04:48]} e6 {[%emt 0:00:07]} 5. a4 {[%emt 0:00:58]} b4 {[%emt 0:00:11]} 6. c4 {[%emt 0:00:23]} bxc3 {[%emt 0:01:42]} 7. Nxc3 {[%emt 0:01:17]} Be7 {[%emt 0:02:13]} 8. O-O {[%emt 0:00:07] The position is equal.} O-O {[%emt 0:00:12]} 9. a5 {[%emt 0:07:13]} Na6 {[%emt 0:02:09]} 10. Bf4 {[%emt 0:04:53]} c5 {[%emt 0:05:07]} 11. dxc5 {[%emt 0:02:24]} Nxc5 {[%emt 0:00:19]} (11... Rc8 $15) 12. b4 $11 {[%emt 0:01:09]} Nce4 {[%emt 0:00:06]} 13. Nxe4 {[%emt 0:03:47]} Bxe4 {[%emt 0:05:54]} 14. b5 {[%emt 0:06:01]} Nd5 {[%emt 0:04:12]} 15. Qd4 {[%emt 0:08:52] Inhibits Nc3.} f5 {[%emt 0:00:16]} 16. Be5 $36 {[%emt 0:15:55][%mdl 2048] White has some pressure.} Bb4 {[%emt 0:22:03] [#] aiming for ...d6.} 17. Qb2 {[%emt 0:04:02]} (17. Bxg7 $2 {too greedy.} Bc3 $19) 17... Rf7 {[%emt 0:03:16][%cal Od7d6]} 18. Qa2 {[%emt 0:03:15]} Rc8 {[%emt 0:14:15]} 19. Bd4 {[%emt 0:01:47]} d6 {[%emt 0:06:29]} 20. a6 {[%emt 0:07:19]} Rc2 {[%emt 0:09:18]} ({Better is} 20... Rb8 $11) 21. Qb3 {[%emt 0:01:10][%cal Of3g5] Ng5! is the strong threat.} Rxe2 $2 {[%emt 0:01:13][%mdl 8192] [#] Black is on the road to losing.} (21... Rc8 $14) 22. b6 $1 $18 {[%emt 0:04:42][%mdl 512]} axb6 {[%emt 0:00:22]} 23. Rfc1 {[%emt 0:05:44]} Bc5 {[%emt 0:04:42]} 24. Qd1 {[%emt 0:07:27]} Bxf3 {[%emt 0:04:34]} 25. Bxf3 {[%emt 0:00:04]} Re5 {[%emt 0:00:23]} 26. Bxe5 {[%emt 0:02:52]} ({Less strong is} 26. a7 Qa8 27. Qd3 (27. Bxe5 dxe5 28. Bxd5 exd5 $18) 27... Rxa7 $18 (27... Bxd4 $2 28. Rc8+ Qxc8 29. a8=Q $18)) 26... dxe5 {[%emt 0:00:03]} 27. a7 {[%emt 0:00:19] Hoping for Bxd5.} Qa8 {[%emt 0:00:04][%cal Oe5e4]} 28. Bxd5 {[%emt 0:05:38]} exd5 {[%emt 0:00:05]} 29. Qb3 {[%emt 0:00:41][%cal Oc1c5] And now Rxc5! would win.} Rxa7 {[%emt 0:06:25]} 30. Rxa7 {[%emt 0:00:03]} Qxa7 {[%emt 0:00:05]} 31. Qxd5+ {[%emt 0:00:02][%mdl 4096] Endgame. KQR-KQB} Qf7 {[%emt 0:00:05]} 32. Qxe5 {[%emt 0:00:14]} h5 {[%emt 0:00:37]} (32... Qd7 $142 33. Qe2 Kf7) 33. Rd1 {[%emt 0:01:52]} Kh7 {[%emt 0:00:14]} 34. Rd5 {[%emt 0:00:04]} Kg6 $2 {[%emt 0:00:13]} (34... g6 35. Rd8 Qg7) 35. Kg2 {[%emt 0:00:27]} Qf6 {[%emt 0:01:19]} 36. Qe8+ {[%emt 0:00:03]} Kh6 {[%emt 0:00:06]} 37. Qh8+ {[%emt 0:01:04]} Kg6 {[%emt 0:00:02]} 38. Qe8+ {[%emt 0:00:01]} (38. Qc8) 38... Kh6 {[%emt 0:00:01]} 39. Re5 {[%emt 0:01:50]} g6 {[%emt 0:00:04]} 40. Re6 {[%emt 0:00:17]} Qg7 {[%emt 0:00:04]} 41. h4 {[%emt 0:00:32]} Kh7 {[%emt 0:00:06]} 42. Rc6 {[%emt 0:00:19]} Kh6 {[%emt 0:02:27]} 43. Qd8 {[%emt 0:00:51] Intending Rc7 and mate.} Qe7 {[%emt 0:01:51]} 44. Qh8+ {[%emt 0:00:41]} Qh7 {[%emt 0:00:05]} 45. Qb8 {[%emt 0:00:42]} Qf7 {[%emt 0:00:32]} 46. Qf4+ {[%emt 0:00:11]} Kg7 {[%emt 0:01:53]} 47. Rc7 {[%emt 0:00:05] Weighted Error Value: White=0.39/Black=0.66.  Loses game:     	---       	Black=1      Mistake:       	---       	Black=4      Inaccurate:     	White=4     	Black=2      OK:         	White=12    	Black=14     Best:        	White=3     	Black=4      Brilliant:      	White=1     	---} 1-0

[Event "Belt and Road Women 2024"]
[Site "Yuecheng Shaoxing"]
[Date "2024.07.29"]
[Round "6.2"]
[White "Shuvalova, Polina"]
[Black "Stefanova, Antoaneta"]
[Result "1/2-1/2"]
[ECO "C72"]
[WhiteElo "2467"]
[BlackElo "2417"]
[Annotator "TA"]
[PlyCount "70"]
[EventDate "2024.08.01"]
[EventType "swiss"]
[EventCountry "CHN"]
[SourceTitle "playchess.com"]
[Source "ChessBase"]
[SourceQuality "1"]
[TimeControl "5400+30"]

{[%evp 10,70,46,17,33,37,35,37,39,15,33,30,43,40,43,44,51,39,49,47,60,57,84,57,57,45,56,50,46,47,64,37,36,27,70,66,62,0,57,38,51,38,38,22,36,36,43,-26,-24,-23,-19,-14,-12,-12,-15,-32,0,0,0,-28,0,0,0]} 1. e4 {[%emt 0:00:03]} e5 {[%emt 0:00:57]} 2. Nf3 {[%emt 0:00:06]} Nc6 {[%emt 0:00:03]} 3. Bb5 {[%emt 0:00:06]} a6 {[%emt 0:01:27]} 4. Ba4 {[%emt 0:00:06]} d6 {[%emt 0:04:19]} 5. O-O {[%emt 0:00:22]} Bd7 {[%emt 0:07:31]} 6. c4 {[%emt 0:00:21]} Bg4 {[%emt 0:00:54]} 7. h3 {[%emt 0:00:24]} Bxf3 {[%emt 0:00:21]} 8. Qxf3 {[%emt 0:00:05]} Nf6 {[%emt 0:00:28][%cal Bg8f6,Bf6d7,Bd7f8,Bf8e6,Be6d4][%mdl 32] White is slightly better.} 9. d3 {[%emt 0:00:28]} Nd7 {[%emt 0:13:49]} 10. Be3 {[%emt 0:06:08]} g6 {[%emt 0:07:24]} 11. Nc3 {[%emt 0:01:46]} Bg7 {[%emt 0:01:19]} 12. Bxc6 {[%emt 0:02:09]} bxc6 {[%emt 0:00:05]} 13. b4 {[%emt 0:00:05][%cal Bb2b4,Bb4b5][%mdl 32]} Nf8 {[%emt 0:03:38]} 14. a4 {[%emt 0:07:36]} Ne6 {[%emt 0:02:02]} 15. b5 {[%emt 0:04:49]} Nd4 {[%emt 0:14:39]} 16. Bxd4 {[%emt 0:07:06]} exd4 {[%emt 0:00:04]} 17. Ne2 {[%emt 0:02:54][%cal Bc3e2,Be2f4,Bf4d5,Bd5e7][%mdl 32]} cxb5 {[%emt 0:01:21]} 18. axb5 {[%emt 0:01:01]} axb5 {[%emt 0:00:05]} 19. cxb5 {[%emt 0:00:16]} O-O {[%emt 0:15:56][%cal Be8g8,Bg8h8,Bh8g7][%mdl 32]} 20. Rxa8 {[%emt 0:20:28]} Qxa8 {[%emt 0:00:02]} 21. Nf4 {[%emt 0:00:06]} Qa3 {[%emt 0:01:24] Against Rc1} 22. Nd5 {[%emt 0:01:46]} Qc5 {[%emt 0:00:23] Black is weak on the light squares} 23. Ne7+ {[%emt 0:06:15]} Kh8 {[%emt 0:00:08]} 24. Rb1 {[%emt 0:00:03]} Be5 {[%emt 0:09:05][%cal Bg7e5,Be5g3,Bg3h4][%mdl 32]} 25. g3 {[%emt 0:00:13]} Kg7 {[%emt 0:00:53]} 26. Qd1 {[%emt 0:04:09]} Bxg3 {[%emt 0:06:17]} 27. Nd5 {[%emt 0:05:02]} ({Of course not} 27. fxg3 Qg5 28. Kg2 Qxe7 $11) 27... Bh4 {[%emt 0:00:39]} 28. Rc1 {[%emt 0:00:23]} (28. Qc1 $14) 28... Qxb5 $11 {[%emt 0:00:26]} 29. Rxc7 {[%emt 0:00:03]} Qb2 {[%emt 0:02:39]} 30. Qf3 {[%emt 0:08:24] Active counter play!} Qd2 {[%emt 0:00:09]} 31. Rd7 {[%emt 0:01:38]} Qg5+ {[%emt 0:01:23]} 32. Kf1 {[%emt 0:10:00]} Qc1+ {[%emt 0:02:54]} 33. Kg2 {[%emt 0:00:02][%cal Od5f4]} Qg5+ {[%emt 0:00:04]} 34. Kf1 {[%emt 0:01:02]} Qc1+ {[%emt 0:01:01]} 35. Kg2 {[%emt 0:00:04]} Qg5+ {[%emt 0:00:03] Weighted Error Value: White=0.12 (very precise) /Black=0.10 (very precise) .  Mistake:       	White=1     	---        Inaccurate:     	White=2     	Black=5      OK:         	White=11    	Black=11     Best:        	White=5     	Black=2} 1/2-1/2

[Event "Belt and Road Women 2024"]
[Site "Yuecheng Shaoxing"]
[Date "2024.07.29"]
[Round "6.3"]
[White "Mammadzada, Gunay"]
[Black "Xiao, Yiyi"]
[Result "1-0"]
[ECO "C10"]
[WhiteElo "2444"]
[BlackElo "2338"]
[Annotator "RC"]
[PlyCount "75"]
[EventDate "2024.08.01"]
[EventType "swiss"]
[EventCountry "CHN"]
[SourceTitle "playchess.com"]
[Source "ChessBase"]
[SourceQuality "1"]
[TimeControl "5400+30"]

1. e4 {[%emt 0:00:25]} e6 {[%emt 0:01:30]} 2. d4 {[%emt 0:00:13]} d5 {[%emt 0:00:14]} 3. Nd2 {[%emt 0:00:25]} dxe4 {[%emt 0:00:34]} 4. Nxe4 {[%emt 0:00:05]} Nd7 {[%emt 0:00:12]} 5. Nf3 {[%emt 0:02:10]} Ngf6 {[%emt 0:00:32]} 6. Bd3 {[%emt 0:02:01]} Nxe4 {[%emt 0:01:53]} 7. Bxe4 {[%emt 0:00:04]} Nf6 {[%emt 0:00:54]} 8. Bg5 {[%emt 0:03:53]} h6 {[%emt 0:05:25]} 9. Bxf6 {[%emt 0:02:21]} Qxf6 {[%emt 0:10:32]} 10. Qe2 {[%emt 0:00:30]} g6 {[%emt 0:02:20]} 11. Bxb7 {[%emt 0:04:12]} Rb8 {[%emt 0:01:43]} 12. Bxc8 {[%emt 0:03:30]} Rxc8 {[%emt 0:00:05]} 13. Qa6 {[%emt 0:02:45]} Qd8 {[%emt 0:00:56]} 14. Qxa7 {[%emt 0:08:03]} Bd6 {[%emt 0:01:07]} 15. Qa4+ {[%emt 0:00:17]} c6 {[%emt 0:01:37]} 16. O-O {[%emt 0:00:09]} O-O {[%emt 0:00:03]} 17. b4 {[%emt 0:02:54]} Rb8 {[%emt 0:02:37]} 18. a3 {[%emt 0:05:48]} Rb5 {[%emt 0:02:53]} 19. c4 {[%emt 0:01:48]} Rh5 {[%emt 0:00:09]} 20. g3 {[%emt 0:00:13]} Qd7 {[%emt 0:04:39]} 21. Rad1 {[%emt 0:01:25]} Qb7 {[%emt 0:00:52]} 22. Rd3 {[%emt 0:04:18]} Rf5 {[%emt 0:03:12]} 23. Qc2 {[%emt 0:01:07]} Bb8 {[%emt 0:03:29]} 24. Qe2 {[%emt 0:05:51]} Kg7 {[%emt 0:05:26]} 25. Qe4 {[%emt 0:00:59]} Qa6 {[%emt 0:00:30]} 26. Ne5 {[%emt 0:01:19]} Rc8 {[%emt 0:04:41]} 27. Rc1 {[%emt 0:08:51]} h5 {[%emt 0:18:06]} 28. Kg2 {[%emt 0:00:13]} c5 {[%emt 0:05:34]} 29. b5 {[%emt 0:01:44]} Qd6 {[%emt 0:04:47]} 30. Nc6 {[%emt 0:00:09]} Kh7 {[%emt 0:00:10]} 31. dxc5 {[%emt 0:03:47]} Qxc5 {[%emt 0:00:08]} 32. Rf3 {[%emt 0:00:11]} Bc7 {[%emt 0:06:00]} 33. Rxf5 {[%emt 0:04:27]} exf5 {[%emt 0:01:06]} 34. Qe7 {[%emt 0:07:57]} Bd6 {[%emt 0:00:56]} 35. Qxf7+ {[%emt 0:00:11]} Kh6 {[%emt 0:00:05]} 36. Rd1 {[%emt 0:01:14]} f4 {[%emt 0:06:29]} 37. Rxd6 {[%emt 0:07:08]} f3+ {[%emt 0:01:10]} 38. Qxf3 {[%emt 0:00:20]} 1-0

[Event "Belt and Road Women 2024"]
[Site "Yuecheng Shaoxing"]
[Date "2024.07.29"]
[Round "6.4"]
[White "Zhang, Lanlin"]
[Black "Wagner, Dinara"]
[Result "1/2-1/2"]
[ECO "B90"]
[WhiteElo "2161"]
[BlackElo "2454"]
[Annotator "RC"]
[PlyCount "96"]
[EventDate "2024.08.01"]
[EventType "swiss"]
[EventCountry "CHN"]
[SourceTitle "playchess.com"]
[Source "ChessBase"]
[SourceQuality "1"]
[TimeControl "5400+30"]

1. e4 {[%emt 0:00:53]} c5 {[%emt 0:00:04]} 2. Nf3 {[%emt 0:00:06]} d6 {[%emt 0:00:03]} 3. d4 {[%emt 0:00:23]} cxd4 {[%emt 0:00:05]} 4. Nxd4 {[%emt 0:00:03]} Nf6 {[%emt 0:00:03]} 5. Nc3 {[%emt 0:00:04]} a6 {[%emt 0:00:04]} 6. Be3 {[%emt 0:00:04]} e5 {[%emt 0:00:30]} 7. Nb3 {[%emt 0:00:06]} Be6 {[%emt 0:02:28]} 8. f3 {[%emt 0:00:08]} Nbd7 {[%emt 0:00:34]} 9. Qd2 {[%emt 0:00:22]} Be7 {[%emt 0:02:52]} 10. O-O-O {[%emt 0:00:15]} b5 {[%emt 0:00:37]} 11. g4 {[%emt 0:00:20]} b4 {[%emt 0:00:59]} 12. Ne2 {[%emt 0:07:52]} h6 {[%emt 0:20:45]} 13. Qxb4 {[%emt 0:17:05]} d5 {[%emt 0:01:36]} 14. Bc5 {[%emt 0:01:24]} dxe4 {[%emt 0:10:54]} 15. fxe4 {[%emt 0:03:12]} Bxc5 {[%emt 0:10:21]} 16. Nxc5 {[%emt 0:00:16]} Qe7 {[%emt 0:00:04]} 17. Nd3 {[%emt 0:00:12]} Nxg4 {[%emt 0:01:16]} 18. Qd2 {[%emt 0:09:33]} Qh4 {[%emt 0:13:18]} 19. Ng1 {[%emt 0:07:24]} Qd8 {[%emt 0:07:23]} 20. Nf3 {[%emt 0:05:13]} Qb6 {[%emt 0:02:49]} 21. Re1 {[%emt 0:04:35]} Rb8 {[%emt 0:02:15]} 22. b3 {[%emt 0:02:22]} Ngf6 {[%emt 0:05:08]} 23. Ndxe5 {[%emt 0:04:57]} Nxe5 {[%emt 0:06:06]} 24. Nxe5 {[%emt 0:00:05]} Rd8 {[%emt 0:00:10]} 25. Qc3 {[%emt 0:02:24]} O-O {[%emt 0:03:13]} 26. Nc4 {[%emt 0:01:07]} Qf2 {[%emt 0:02:44]} 27. Bd3 {[%emt 0:01:43]} Bxc4 {[%emt 0:02:53]} 28. Qxc4 {[%emt 0:10:36]} Rc8 {[%emt 0:02:02]} 29. Qb4 {[%emt 0:02:22]} Rfd8 {[%emt 0:00:59]} 30. Kb1 {[%emt 0:12:13]} Ng4 {[%emt 0:02:00]} 31. e5 {[%emt 0:02:07]} Ne3 {[%emt 0:00:38]} 32. Qe4 {[%emt 0:04:05]} Nd5 {[%emt 0:00:47]} 33. Qh7+ {[%emt 0:02:33]} Kf8 {[%emt 0:00:02]} 34. Qh8+ {[%emt 0:00:03]} Ke7 {[%emt 0:00:02]} 35. Qxg7 {[%emt 0:00:03]} Qd4 {[%emt 0:00:10]} 36. Rhf1 {[%emt 0:00:30]} Nc3+ {[%emt 0:00:32]} 37. Kc1 {[%emt 0:00:07]} Nxa2+ {[%emt 0:00:04]} 38. Kd1 {[%emt 0:00:15]} Nc3+ {[%emt 0:02:24]} 39. Kc1 {[%emt 0:02:18]} Na2+ {[%emt 0:00:03]} 40. Kd1 {[%emt 0:00:13]} Nc3+ {[%emt 0:00:02]} 41. Kc1 {[%emt 0:00:25]} Na2+ {[%emt 0:01:08]} 42. Kd1 {[%emt 0:00:02]} Nc3+ {[%emt 0:00:02]} 43. Kc1 {[%emt 0:00:05]} Na2+ {[%emt 0:01:14]} 44. Kd1 {[%emt 0:00:05]} Nc3+ {[%emt 0:00:01]} 45. Kc1 {[%emt 0:02:13]} Ne2+ {[%emt 0:00:19]} 46. Kd1 {[%emt 0:00:08]} Nc3+ {[%emt 0:00:30]} 47. Kc1 {[%emt 0:00:03]} Na2+ {[%emt 0:00:23]} 48. Kd1 {[%emt 0:00:05]} Nc3+ {[%emt 0:00:35]} 1/2-1/2

[Event "Belt and Road Women 2024"]
[Site "Yuecheng Shaoxing"]
[Date "2024.07.29"]
[Round "6.5"]
[White "Lu, Miaoyi"]
[Black "Zhai, Mo"]
[Result "1/2-1/2"]
[ECO "C65"]
[WhiteElo "2449"]
[BlackElo "2348"]
[Annotator "RC"]
[PlyCount "71"]
[EventDate "2024.08.01"]
[EventType "swiss"]
[EventCountry "CHN"]
[SourceTitle "playchess.com"]
[Source "ChessBase"]
[SourceQuality "1"]
[TimeControl "5400+30"]

1. e4 {[%emt 0:00:01]} e5 {[%emt 0:00:21]} 2. Nf3 {[%emt 0:00:02]} Nc6 {[%emt 0:00:10]} 3. Bb5 {[%emt 0:00:03]} Nf6 {[%emt 0:02:03]} 4. d3 {[%emt 0:00:02]} Bc5 {[%emt 0:00:46]} 5. c3 {[%emt 0:00:03]} O-O {[%emt 0:01:25]} 6. O-O {[%emt 0:00:03]} d6 {[%emt 0:00:57]} 7. h3 {[%emt 0:00:02]} Bb6 {[%emt 0:03:14]} 8. Re1 {[%emt 0:00:05]} Ne7 {[%emt 0:01:52]} 9. d4 {[%emt 0:00:02]} d5 {[%emt 0:00:48]} 10. Nxe5 {[%emt 0:00:05]} Nxe4 {[%emt 0:00:21]} 11. Nd2 {[%emt 0:00:02]} Nd6 {[%emt 0:03:35]} 12. Bf1 {[%emt 0:00:03]} c6 {[%emt 0:02:44]} 13. a4 {[%emt 0:00:14]} Bc7 {[%emt 0:05:44]} 14. b3 {[%emt 0:05:21]} Re8 {[%emt 0:02:12]} 15. Ba3 {[%emt 0:00:02]} f6 {[%emt 0:01:34]} 16. Nd3 {[%emt 0:00:15]} Ng6 {[%emt 0:02:23]} 17. Qf3 {[%emt 0:10:08]} a5 {[%emt 0:20:27]} 18. g3 {[%emt 0:12:56]} Be6 {[%emt 0:05:28]} 19. Nc5 {[%emt 0:10:58]} Bc8 {[%emt 0:06:39]} 20. h4 {[%emt 0:17:52]} b6 {[%emt 0:09:43]} 21. Nd3 {[%emt 0:00:02]} Nf8 {[%emt 0:00:51]} 22. Rxe8 {[%emt 0:14:38]} Qxe8 {[%emt 0:00:20]} 23. Nf4 {[%emt 0:05:44]} Qf7 {[%emt 0:06:41]} 24. c4 {[%emt 0:05:25]} Ne6 {[%emt 0:02:03]} 25. Ne2 {[%emt 0:05:53]} Bb7 {[%emt 0:03:40]} 26. Rc1 {[%emt 0:04:47]} Re8 {[%emt 0:01:52]} 27. Bg2 {[%emt 0:00:30]} Bb8 {[%emt 0:04:28]} 28. cxd5 {[%emt 0:05:01]} cxd5 {[%emt 0:00:02]} 29. Qd3 {[%emt 0:00:02]} Qg6 {[%emt 0:04:55]} 30. Qxg6 {[%emt 0:00:09]} hxg6 {[%emt 0:00:02]} 31. Nf3 {[%emt 0:01:42]} Ne4 {[%emt 0:02:24]} 32. Nc3 {[%emt 0:00:16]} Rc8 {[%emt 0:01:09]} 33. Nb5 {[%emt 0:01:43]} Rxc1+ {[%emt 0:00:41]} 34. Bxc1 {[%emt 0:00:01]} Bc6 {[%emt 0:00:53]} 35. Bf1 {[%emt 0:00:59]} Nd6 {[%emt 0:01:32]} 36. Nxd6 {[%emt 0:01:24]} 1/2-1/2

[Event "Belt and Road Women 2024"]
[Site "Yuecheng Shaoxing"]
[Date "2024.07.29"]
[Round "6.6"]
[White "Ni, Shiqun"]
[Black "Velpula Sarayu"]
[Result "1/2-1/2"]
[ECO "B51"]
[WhiteElo "2352"]
[BlackElo "2384"]
[Annotator "RC"]
[PlyCount "58"]
[EventDate "2024.08.01"]
[EventType "swiss"]
[EventCountry "CHN"]
[SourceTitle "playchess.com"]
[Source "ChessBase"]
[SourceQuality "1"]
[TimeControl "5400+30"]

1. e4 {[%emt 0:00:25]} c5 {[%emt 0:00:25]} 2. Nf3 {[%emt 0:00:06]} d6 {[%emt 0:00:30]} 3. Bb5+ {[%emt 0:00:06]} Nd7 {[%emt 0:00:31]} 4. d4 {[%emt 0:00:43]} cxd4 {[%emt 0:00:28]} 5. Nxd4 {[%emt 0:00:04]} Ngf6 {[%emt 0:01:01]} 6. O-O {[%emt 0:00:07]} g6 {[%emt 0:01:26]} 7. Re1 {[%emt 0:00:42]} Bg7 {[%emt 0:00:49]} 8. Bf1 {[%emt 0:00:29]} O-O {[%emt 0:07:29]} 9. c4 {[%emt 0:00:45]} Ne5 {[%emt 0:00:28]} 10. Nc3 {[%emt 0:05:19]} Nc6 {[%emt 0:00:21]} 11. Nde2 {[%emt 0:04:13]} Bd7 {[%emt 0:09:27]} 12. h3 {[%emt 0:08:23]} Rc8 {[%emt 0:11:08]} 13. Be3 {[%emt 0:07:09]} a6 {[%emt 0:03:16]} 14. a4 {[%emt 0:12:01]} Nb4 {[%emt 0:15:28]} 15. Nf4 {[%emt 0:09:17]} a5 {[%emt 0:03:11]} 16. Qb3 {[%emt 0:10:35]} Bc6 {[%emt 0:05:29]} 17. Nfd5 {[%emt 0:03:06]} Bxd5 {[%emt 0:00:45]} 18. Nxd5 {[%emt 0:05:19]} Nbxd5 {[%emt 0:04:20]} 19. exd5 {[%emt 0:02:48]} Nd7 {[%emt 0:00:19]} 20. Rab1 {[%emt 0:04:03]} Re8 {[%emt 0:09:40]} 21. Qxb7 {[%emt 0:03:57]} Rb8 {[%emt 0:01:39]} 22. Qa7 {[%emt 0:00:21]} Ra8 {[%emt 0:05:41]} 23. Qb7 {[%emt 0:00:02]} Rb8 {[%emt 0:00:07]} 24. Qa7 {[%emt 0:00:03]} Bxb2 {[%emt 0:09:36]} 25. c5 {[%emt 0:00:02]} Ra8 {[%emt 0:02:16]} 26. Qb7 {[%emt 0:00:02]} Rb8 {[%emt 0:00:13]} 27. Qa7 {[%emt 0:00:41]} Ra8 {[%emt 0:03:19]} 28. Qb7 {[%emt 0:00:02]} Rb8 {[%emt 0:00:14]} 29. Qa7 {[%emt 0:00:30]} Ra8 {[%emt 0:00:47]} 1/2-1/2